{"text_format":"3","workbook":"xlsx","n_sheets":4,"sheets":["Miesięczne podsumowanie budżetu","Przychód","Wydatki na personel","Wydatki operacyjne"],"not_rendered":{"charts":1,"defined_names":14},"read":"whole","date_system":"1900"}

{"sheet":"Miesięczne podsumowanie budżetu","index":0,"n_rows":17,"n_cols":5,"rows_kept":17,"merged":[[1,1,1,3],[1,4,1,5],[8,1,8,4]]}
[null,"NAZWA FIRMY"]
[null,"BUDŻET MIESIĘCZNY",null,null,"Data"]
[]
[null,"SUMY BUDŻETU","SZACOWANE","RZECZYWISTE","RÓŻNICA"]
[null,"Przychód",{"$f":"Przychód[[#Totals],[SZACOWANE]]","v":{"v":63300,"d":"63300.00"}},{"$f":"Przychód[[#Totals],[RZECZYWISTE]]","v":{"v":57450,"d":"57450.00"}},{"$f":"Sumy[[#This Row],[RZECZYWISTE]]-Sumy[[#This Row],[SZACOWANE]]","v":{"v":-5850,"d":"-5850.00 "}}]
[null,"Wydatki",{"$f":"Wydatki_operacyjne[[#Totals],[SZACOWANE]]+Wydatki_na_personel[[#Totals],[SZACOWANE]]","v":{"v":54500,"d":"54500.00"}},{"$f":"Wydatki_operacyjne[[#Totals],[RZECZYWISTE]]+Wydatki_na_personel[[#Totals],[RZECZYWISTE]]","v":{"v":49630,"d":"49630.00"}},{"$f":"Sumy[[#This Row],[RZECZYWISTE]]-Sumy[[#This Row],[SZACOWANE]]","v":{"v":-4870,"d":"-4870.00 "}}]
[null,"Saldo (przychód minus wydatki)",{"$f":"C5-C6","v":{"v":8800,"d":"8800.00"}},{"$f":"D5-D6","v":{"v":7820,"d":"7820.00"}},{"$f":"Sumy[[#Totals],[RZECZYWISTE]]-Sumy[[#Totals],[SZACOWANE]]","v":{"v":-980,"d":"-980.00 "}}]
[]
[null,"Ta komórka zawiera wykres Przegląd budżetu. W tabeli 5_najwyższych_wydatków poniżej 5 najwyższych wydatków operacyjnych jest aktualizowanych automatycznie."]
[null,"CO STANOWI 5 NAJWYŻSZYCH WYDATKÓW OPERACYJNYCH?"]
[null,"WYDATEK","KWOTA","% WYDATKÓW","ZMNIEJSZENIE O 15%"]
[null,{"$f":"INDEX(Wydatki_operacyjne[],MATCH(_5_najwyższych_wydatków[[#This Row],[KWOTA]],Wydatki_operacyjne[5 NAJWYŻSZYCH KWOT],0),1)","v":"Konserwacja i naprawy"},{"$f":"LARGE(Wydatki_operacyjne[5 NAJWYŻSZYCH KWOT],1)","v":{"v":4600.000008,"d":"4,600.00"}},{"$f":"_5_najwyższych_wydatków[[#This Row],[KWOTA]]/$D$6","v":{"v":0.09268587563973403,"d":"9.3%"}},{"$f":"_5_najwyższych_wydatków[[#This Row],[KWOTA]]*0.15","v":{"v":690.0000011999999,"d":"690.00"}}]
[null,{"$f":"INDEX(Wydatki_operacyjne[],MATCH(_5_najwyższych_wydatków[[#This Row],[KWOTA]],Wydatki_operacyjne[5 NAJWYŻSZYCH KWOT],0),1)","v":"Materiały"},{"$f":"LARGE(Wydatki_operacyjne[5 NAJWYŻSZYCH KWOT],2)","v":{"v":4500.00001,"d":"4,500.00"}},{"$f":"_5_najwyższych_wydatków[[#This Row],[KWOTA]]/$D$6","v":{"v":0.0906709653435422,"d":"9.1%"}},{"$f":"_5_najwyższych_wydatków[[#This Row],[KWOTA]]*0.15","v":{"v":675.0000014999999,"d":"675.00"}}]
[null,{"$f":"INDEX(Wydatki_operacyjne[],MATCH(_5_najwyższych_wydatków[[#This Row],[KWOTA]],Wydatki_operacyjne[5 NAJWYŻSZYCH KWOT],0),1)","v":"Hipoteka lub czynsz"},{"$f":"LARGE(Wydatki_operacyjne[5 NAJWYŻSZYCH KWOT],3)","v":{"v":4500.000006,"d":"4,500.00"}},{"$f":"_5_najwyższych_wydatków[[#This Row],[KWOTA]]/$D$6","v":{"v":0.0906709652629458,"d":"9.1%"}},{"$f":"_5_najwyższych_wydatków[[#This Row],[KWOTA]]*0.15","v":{"v":675.0000009,"d":"675.00"}}]
[null,{"$f":"INDEX(Wydatki_operacyjne[],MATCH(_5_najwyższych_wydatków[[#This Row],[KWOTA]],Wydatki_operacyjne[5 NAJWYŻSZYCH KWOT],0),1)","v":"Podatki"},{"$f":"LARGE(Wydatki_operacyjne[5 NAJWYŻSZYCH KWOT],4)","v":{"v":3200.000015,"d":"3,200.00"}},{"$f":"_5_najwyższych_wydatków[[#This Row],[KWOTA]]/$D$6","v":{"v":0.06447713106991738,"d":"6.4%"}},{"$f":"_5_najwyższych_wydatków[[#This Row],[KWOTA]]*0.15","v":{"v":480.00000224999997,"d":"480.00"}}]
[null,{"$f":"INDEX(Wydatki_operacyjne[],MATCH(_5_najwyższych_wydatków[[#This Row],[KWOTA]],Wydatki_operacyjne[5 NAJWYŻSZYCH KWOT],0),1)","v":"Reklama"},{"$f":"LARGE(Wydatki_operacyjne[5 NAJWYŻSZYCH KWOT],5)","v":{"v":2500.000017,"d":"2,500.00"}},{"$f":"_5_najwyższych_wydatków[[#This Row],[KWOTA]]/$D$6","v":{"v":0.05037275875478541,"d":"5.0%"}},{"$f":"_5_najwyższych_wydatków[[#This Row],[KWOTA]]*0.15","v":{"v":375.00000255,"d":"375.00"}}]
[null,"Suma",{"$f":"SUBTOTAL(109,_5_najwyższych_wydatków[KWOTA])","v":{"v":19300.000055999997,"d":"19,300.00"}},{"$f":"SUBTOTAL(109,_5_najwyższych_wydatków[% WYDATKÓW])","v":{"v":0.3888776960709248,"d":"38.9%"}},{"$f":"SUBTOTAL(109,_5_najwyższych_wydatków[ZMNIEJSZENIE O 15%])","v":{"v":2895.0000084,"d":"2,895.00"}}]

{"sheet":"Przychód","index":1,"n_rows":8,"n_cols":6,"rows_kept":8,"merged":[[1,1,1,3]]}
[null,{"$f":"NAZWA_FIRMY","v":"NAZWA FIRMY"}]
[null,{"$f":"BUDŻET_Tytuł","v":"BUDŻET MIESIĘCZNY"}]
[]
[null,"PRZYCHÓD","SZACOWANE","RZECZYWISTE","5 NAJWYŻSZYCH KWOT","RÓŻNICA"]
[null,"Sprzedaż netto",{"v":60000,"d":"60,000.00"},{"v":54000,"d":"54,000.00"},{"$f":"Przychód[[#This Row],[RZECZYWISTE]]+(10^-6)*ROW(Przychód[[#This Row],[RZECZYWISTE]])","v":{"v":54000.000005,"d":"54,000.00"}},{"$f":"Przychód[[#This Row],[RZECZYWISTE]]-Przychód[[#This Row],[SZACOWANE]]","v":{"v":-6000,"d":"-6,000.00 "}}]
[null,"Przychód z tytułu odsetek",{"v":3000,"d":"3,000.00"},{"v":3000,"d":"3,000.00"},{"$f":"Przychód[[#This Row],[RZECZYWISTE]]+(10^-6)*ROW(Przychód[[#This Row],[RZECZYWISTE]])","v":{"v":3000.000006,"d":"3,000.00"}},{"$f":"Przychód[[#This Row],[RZECZYWISTE]]-Przychód[[#This Row],[SZACOWANE]]","v":{"v":0,"d":"0.00"}}]
[null,"Sprzedaż składników majątku (zysk/strata)",{"v":300,"d":"300.00"},{"v":450,"d":"450.00"},{"$f":"Przychód[[#This Row],[RZECZYWISTE]]+(10^-6)*ROW(Przychód[[#This Row],[RZECZYWISTE]])","v":{"v":450.000007,"d":"450.00"}},{"$f":"Przychód[[#This Row],[RZECZYWISTE]]-Przychód[[#This Row],[SZACOWANE]]","v":{"v":150,"d":"150.00"}}]
[null,"Łączny przychód",{"$f":"SUBTOTAL(109,Przychód[SZACOWANE])","v":{"v":63300,"d":"63,300.00"}},{"$f":"SUBTOTAL(109,Przychód[RZECZYWISTE])","v":{"v":57450,"d":"57,450.00"}},null,{"$f":"SUBTOTAL(109,Przychód[RÓŻNICA])","v":{"v":-5850,"d":"-5,850.00 "}}]

{"sheet":"Wydatki na personel","index":2,"n_rows":8,"n_cols":6,"rows_kept":8,"merged":[[1,1,1,3]]}
[null,{"$f":"NAZWA_FIRMY","v":"NAZWA FIRMY"}]
[null,{"$f":"BUDŻET_Tytuł","v":"BUDŻET MIESIĘCZNY"}]
[]
[null,"WYDATKI NA PERSONEL","SZACOWANE","RZECZYWISTE","5 NAJWYŻSZYCH KWOT","RÓŻNICA"]
[null,"Pensje",{"v":9500,"d":"9,500.00"},{"v":9600,"d":"9,600.00"},{"$f":"Wydatki_na_personel[[#This Row],[RZECZYWISTE]]+(10^-6)*ROW(Wydatki_na_personel[[#This Row],[RZECZYWISTE]])","v":{"v":9600.000005,"d":"9,600.00"}},{"$f":"Wydatki_na_personel[[#This Row],[SZACOWANE]]-Wydatki_na_personel[[#This Row],[RZECZYWISTE]]","v":{"v":-100,"d":"-100.00 "}}]
[null,"Świadczenia dla pracowników",{"v":4000,"d":"4,000.00"},{"v":0,"d":"0.00"},{"$f":"Wydatki_na_personel[[#This Row],[RZECZYWISTE]]+(10^-6)*ROW(Wydatki_na_personel[[#This Row],[RZECZYWISTE]])","v":{"v":6e-06,"d":"0.00"}},{"$f":"Wydatki_na_personel[[#This Row],[SZACOWANE]]-Wydatki_na_personel[[#This Row],[RZECZYWISTE]]","v":{"v":4000,"d":"4,000.00"}}]
[null,"Prowizja",{"v":5000,"d":"5,000.00"},{"v":4500,"d":"4,500.00"},{"$f":"Wydatki_na_personel[[#This Row],[RZECZYWISTE]]+(10^-6)*ROW(Wydatki_na_personel[[#This Row],[RZECZYWISTE]])","v":{"v":4500.000007,"d":"4,500.00"}},{"$f":"Wydatki_na_personel[[#This Row],[SZACOWANE]]-Wydatki_na_personel[[#This Row],[RZECZYWISTE]]","v":{"v":500,"d":"500.00"}}]
[null,"Suma wydatków na personel",{"$f":"SUBTOTAL(109,Wydatki_na_personel[SZACOWANE])","v":{"v":18500,"d":"18,500.00"}},{"$f":"SUBTOTAL(109,Wydatki_na_personel[RZECZYWISTE])","v":{"v":14100,"d":"14,100.00"}},null,{"$f":"SUBTOTAL(109,Wydatki_na_personel[RÓŻNICA])","v":{"v":4400,"d":"4,400.00"}}]

{"sheet":"Wydatki operacyjne","index":3,"n_rows":25,"n_cols":6,"rows_kept":25,"merged":[[1,1,1,3]]}
[null,{"$f":"NAZWA_FIRMY","v":"NAZWA FIRMY"}]
[null,{"$f":"BUDŻET_Tytuł","v":"BUDŻET MIESIĘCZNY"}]
[]
[null,"KOSZTY OPERACYJNE","SZACOWANE","RZECZYWISTE","5 NAJWYŻSZYCH KWOT","RÓŻNICA"]
[null,"Amortyzacja",{"v":1000,"d":"1,000.00"},{"v":1000,"d":"1,000.00"},{"$f":"Wydatki_operacyjne[[#This Row],[RZECZYWISTE]]+(10^-6)*ROW(Wydatki_operacyjne[[#This Row],[RZECZYWISTE]])","v":{"v":1000.000005,"d":"1,000.00"}},{"$f":"Wydatki_operacyjne[[#This Row],[SZACOWANE]]-Wydatki_operacyjne[[#This Row],[RZECZYWISTE]]","v":{"v":0,"d":"0.00"}}]
[null,"Hipoteka lub czynsz",{"v":4100,"d":"4,100.00"},{"v":4500,"d":"4,500.00"},{"$f":"Wydatki_operacyjne[[#This Row],[RZECZYWISTE]]+(10^-6)*ROW(Wydatki_operacyjne[[#This Row],[RZECZYWISTE]])","v":{"v":4500.000006,"d":"4,500.00"}},{"$f":"Wydatki_operacyjne[[#This Row],[SZACOWANE]]-Wydatki_operacyjne[[#This Row],[RZECZYWISTE]]","v":{"v":-400,"d":"-400.00 "}}]
[null,"Inne",{"v":1000,"d":"1,000.00"},{"v":750,"d":"750.00"},{"$f":"Wydatki_operacyjne[[#This Row],[RZECZYWISTE]]+(10^-6)*ROW(Wydatki_operacyjne[[#This Row],[RZECZYWISTE]])","v":{"v":750.000007,"d":"750.00"}},{"$f":"Wydatki_operacyjne[[#This Row],[SZACOWANE]]-Wydatki_operacyjne[[#This Row],[RZECZYWISTE]]","v":{"v":250,"d":"250.00"}}]
[null,"Konserwacja i naprawy",{"v":4500,"d":"4,500.00"},{"v":4600,"d":"4,600.00"},{"$f":"Wydatki_operacyjne[[#This Row],[RZECZYWISTE]]+(10^-6)*ROW(Wydatki_operacyjne[[#This Row],[RZECZYWISTE]])","v":{"v":4600.000008,"d":"4,600.00"}},{"$f":"Wydatki_operacyjne[[#This Row],[SZACOWANE]]-Wydatki_operacyjne[[#This Row],[RZECZYWISTE]]","v":{"v":-100,"d":"-100.00 "}}]
[null,"Koszty dostawy",{"v":2000,"d":"2,000.00"},{"v":1500,"d":"1,500.00"},{"$f":"Wydatki_operacyjne[[#This Row],[RZECZYWISTE]]+(10^-6)*ROW(Wydatki_operacyjne[[#This Row],[RZECZYWISTE]])","v":{"v":1500.000009,"d":"1,500.00"}},{"$f":"Wydatki_operacyjne[[#This Row],[SZACOWANE]]-Wydatki_operacyjne[[#This Row],[RZECZYWISTE]]","v":{"v":500,"d":"500.00"}}]
[null,"Materiały",{"v":5000,"d":"5,000.00"},{"v":4500,"d":"4,500.00"},{"$f":"Wydatki_operacyjne[[#This Row],[RZECZYWISTE]]+(10^-6)*ROW(Wydatki_operacyjne[[#This Row],[RZECZYWISTE]])","v":{"v":4500.00001,"d":"4,500.00"}},{"$f":"Wydatki_operacyjne[[#This Row],[SZACOWANE]]-Wydatki_operacyjne[[#This Row],[RZECZYWISTE]]","v":{"v":500,"d":"500.00"}}]
[null,"Materiały biurowe",{"v":800,"d":"800.00"},{"v":750,"d":"750.00"},{"$f":"Wydatki_operacyjne[[#This Row],[RZECZYWISTE]]+(10^-6)*ROW(Wydatki_operacyjne[[#This Row],[RZECZYWISTE]])","v":{"v":750.000011,"d":"750.00"}},{"$f":"Wydatki_operacyjne[[#This Row],[SZACOWANE]]-Wydatki_operacyjne[[#This Row],[RZECZYWISTE]]","v":{"v":50,"d":"50.00"}}]
[null,"Odsetki",{"v":2000,"d":"2,000.00"},{"v":2200,"d":"2,200.00"},{"$f":"Wydatki_operacyjne[[#This Row],[RZECZYWISTE]]+(10^-6)*ROW(Wydatki_operacyjne[[#This Row],[RZECZYWISTE]])","v":{"v":2200.000012,"d":"2,200.00"}},{"$f":"Wydatki_operacyjne[[#This Row],[SZACOWANE]]-Wydatki_operacyjne[[#This Row],[RZECZYWISTE]]","v":{"v":-200,"d":"-200.00 "}}]
[null,"Opłaty i subskrypcje",{"v":500,"d":"500.00"},{"v":525,"d":"525.00"},{"$f":"Wydatki_operacyjne[[#This Row],[RZECZYWISTE]]+(10^-6)*ROW(Wydatki_operacyjne[[#This Row],[RZECZYWISTE]])","v":{"v":525.000013,"d":"525.00"}},{"$f":"Wydatki_operacyjne[[#This Row],[SZACOWANE]]-Wydatki_operacyjne[[#This Row],[RZECZYWISTE]]","v":{"v":-25,"d":"-25.00 "}}]
[null,"Opłaty pocztowe",{"v":400,"d":"400.00"},{"v":350,"d":"350.00"},{"$f":"Wydatki_operacyjne[[#This Row],[RZECZYWISTE]]+(10^-6)*ROW(Wydatki_operacyjne[[#This Row],[RZECZYWISTE]])","v":{"v":350.000014,"d":"350.00"}},{"$f":"Wydatki_operacyjne[[#This Row],[SZACOWANE]]-Wydatki_operacyjne[[#This Row],[RZECZYWISTE]]","v":{"v":50,"d":"50.00"}}]
[null,"Podatki",{"v":3000,"d":"3,000.00"},{"v":3200,"d":"3,200.00"},{"$f":"Wydatki_operacyjne[[#This Row],[RZECZYWISTE]]+(10^-6)*ROW(Wydatki_operacyjne[[#This Row],[RZECZYWISTE]])","v":{"v":3200.000015,"d":"3,200.00"}},{"$f":"Wydatki_operacyjne[[#This Row],[SZACOWANE]]-Wydatki_operacyjne[[#This Row],[RZECZYWISTE]]","v":{"v":-200,"d":"-200.00 "}}]
[null,"Rabaty gotówkowe",{"v":1500,"d":"1,500.00"},{"v":2175,"d":"2,175.00"},{"$f":"Wydatki_operacyjne[[#This Row],[RZECZYWISTE]]+(10^-6)*ROW(Wydatki_operacyjne[[#This Row],[RZECZYWISTE]])","v":{"v":2175.000016,"d":"2,175.00"}},{"$f":"Wydatki_operacyjne[[#This Row],[SZACOWANE]]-Wydatki_operacyjne[[#This Row],[RZECZYWISTE]]","v":{"v":-675,"d":"-675.00 "}}]
[null,"Reklama",{"v":3000,"d":"3,000.00"},{"v":2500,"d":"2,500.00"},{"$f":"Wydatki_operacyjne[[#This Row],[RZECZYWISTE]]+(10^-6)*ROW(Wydatki_operacyjne[[#This Row],[RZECZYWISTE]])","v":{"v":2500.000017,"d":"2,500.00"}},{"$f":"Wydatki_operacyjne[[#This Row],[SZACOWANE]]-Wydatki_operacyjne[[#This Row],[RZECZYWISTE]]","v":{"v":500,"d":"500.00"}}]
[null,"Telefon",{"v":250,"d":"250.00"},{"v":280,"d":"280.00"},{"$f":"Wydatki_operacyjne[[#This Row],[RZECZYWISTE]]+(10^-6)*ROW(Wydatki_operacyjne[[#This Row],[RZECZYWISTE]])","v":{"v":280.000018,"d":"280.00"}},{"$f":"Wydatki_operacyjne[[#This Row],[SZACOWANE]]-Wydatki_operacyjne[[#This Row],[RZECZYWISTE]]","v":{"v":-30,"d":"-30.00 "}}]
[null,"Ubezpieczenie",{"v":1300,"d":"1,300.00"},{"v":1275,"d":"1,275.00"},{"$f":"Wydatki_operacyjne[[#This Row],[RZECZYWISTE]]+(10^-6)*ROW(Wydatki_operacyjne[[#This Row],[RZECZYWISTE]])","v":{"v":1275.000019,"d":"1,275.00"}},{"$f":"Wydatki_operacyjne[[#This Row],[SZACOWANE]]-Wydatki_operacyjne[[#This Row],[RZECZYWISTE]]","v":{"v":25,"d":"25.00"}}]
[null,"Usługi komunalne",{"v":1400,"d":"1,400.00"},{"v":1385,"d":"1,385.00"},{"$f":"Wydatki_operacyjne[[#This Row],[RZECZYWISTE]]+(10^-6)*ROW(Wydatki_operacyjne[[#This Row],[RZECZYWISTE]])","v":{"v":1385.00002,"d":"1,385.00"}},{"$f":"Wydatki_operacyjne[[#This Row],[SZACOWANE]]-Wydatki_operacyjne[[#This Row],[RZECZYWISTE]]","v":{"v":15,"d":"15.00"}}]
[null,"Usługi prawnicze i audytorskie",{"v":1000,"d":"1,000.00"},{"v":800,"d":"800.00"},{"$f":"Wydatki_operacyjne[[#This Row],[RZECZYWISTE]]+(10^-6)*ROW(Wydatki_operacyjne[[#This Row],[RZECZYWISTE]])","v":{"v":800.000021,"d":"800.00"}},{"$f":"Wydatki_operacyjne[[#This Row],[SZACOWANE]]-Wydatki_operacyjne[[#This Row],[RZECZYWISTE]]","v":{"v":200,"d":"200.00"}}]
[null,"Wydatki sprzedażowe",{"v":350,"d":"350.00"},{"v":400,"d":"400.00"},{"$f":"Wydatki_operacyjne[[#This Row],[RZECZYWISTE]]+(10^-6)*ROW(Wydatki_operacyjne[[#This Row],[RZECZYWISTE]])","v":{"v":400.000022,"d":"400.00"}},{"$f":"Wydatki_operacyjne[[#This Row],[SZACOWANE]]-Wydatki_operacyjne[[#This Row],[RZECZYWISTE]]","v":{"v":-50,"d":"-50.00 "}}]
[null,"Wysyłka i magazynowanie",{"v":900,"d":"900.00"},{"v":840,"d":"840.00"},{"$f":"Wydatki_operacyjne[[#This Row],[RZECZYWISTE]]+(10^-6)*ROW(Wydatki_operacyjne[[#This Row],[RZECZYWISTE]])","v":{"v":840.000023,"d":"840.00"}},{"$f":"Wydatki_operacyjne[[#This Row],[SZACOWANE]]-Wydatki_operacyjne[[#This Row],[RZECZYWISTE]]","v":{"v":60,"d":"60.00"}}]
[null,"Złe długi",{"v":2000,"d":"2,000.00"},{"v":2000,"d":"2,000.00"},{"$f":"Wydatki_operacyjne[[#This Row],[RZECZYWISTE]]+(10^-6)*ROW(Wydatki_operacyjne[[#This Row],[RZECZYWISTE]])","v":{"v":2000.000024,"d":"2,000.00"}},{"$f":"Wydatki_operacyjne[[#This Row],[SZACOWANE]]-Wydatki_operacyjne[[#This Row],[RZECZYWISTE]]","v":{"v":0,"d":"0.00"}}]
[null,"Suma wydatków operacyjnych",{"$f":"SUBTOTAL(109,Wydatki_operacyjne[SZACOWANE])","v":{"v":36000,"d":"36,000.00"}},{"$f":"SUBTOTAL(109,Wydatki_operacyjne[RZECZYWISTE])","v":{"v":35530,"d":"35,530.00"}},null,{"$f":"SUBTOTAL(109,Wydatki_operacyjne[RÓŻNICA])","v":{"v":470,"d":"470.00"}}]